[Event "Titled Tuesday Blitz January 11 2022"]
[White "Andrejevs, Arvids"]
[Black "Rodrigue-Lemieux, Shawn"]
[WhiteFideId "11602708"]
[BlackFideId "2620049"]
[WhiteElo "2272"]
[BlackElo "1763"]
[Result "0-1"]
[Round "01"]
[TimeControl "180+1"]
[Date "2022.01.11"]
[WhiteClock "0:00:02"]
[BlackClock "0:01:31"]

1. e4 {[%clk 0:03:00]}  c6 {[%clk 0:02:59]} 2. d4 {[%clk 0:02:59]}  d5 {[%clk 0:02:59]} 3. e5 {[%clk 0:03:00]}  Bf5 {[%clk 0:02:59]} 4. g4 {[%clk 0:02:54]}  Be4 {[%clk 0:02:59]} 5. f3 {[%clk 0:02:55]}  Bg6 {[%clk 0:02:59]} 6. h4 {[%clk 0:02:55]}  h5 {[%clk 0:02:59]} 7. Bd3 {[%clk 0:02:49]}  Bxd3 {[%clk 0:02:57]} 8. Qxd3 {[%clk 0:02:50]}  hxg4 {[%clk 0:02:58]} 9. fxg4 {[%clk 0:02:50]}  e6 {[%clk 0:02:58]} 10. Nf3 {[%clk 0:02:50]}  Be7 {[%clk 0:02:58]} 11. g5 {[%clk 0:02:40]}  g6 {[%clk 0:02:55]} 12. Be3 {[%clk 0:02:35]}  Na6 {[%clk 0:02:52]} 13. c3 {[%clk 0:02:35]}  Qb6 {[%clk 0:02:51]} 14. Nbd2 {[%clk 0:02:29]}  c5 {[%clk 0:02:49]} 15. dxc5 {[%clk 0:02:20]}  Nxc5 {[%clk 0:02:50]} 16. Bxc5 {[%clk 0:02:17]}  Bxc5 {[%clk 0:02:51]} 17. O-O-O {[%clk 0:02:13]}  Ne7 {[%clk 0:02:47]} 18. Nb3 {[%clk 0:02:11]}  Rc8 {[%clk 0:02:45]} 19. Kb1 {[%clk 0:02:03]}  Nf5 {[%clk 0:02:43]} 20. h5 {[%clk 0:01:46]}  gxh5 {[%clk 0:02:40]} 21. Nh4 {[%clk 0:01:42]}  Nxh4 {[%clk 0:02:31]} 22. Rxh4 {[%clk 0:01:43]}  Be7 {[%clk 0:02:31]} 23. Qg3 {[%clk 0:01:29]}  Kd7 {[%clk 0:02:23]} 24. c4 {[%clk 0:01:13]}  Kc7 {[%clk 0:02:10]} 25. cxd5 {[%clk 0:01:12]}  exd5 {[%clk 0:02:11]} 26. Rxd5 {[%clk 0:01:06]}  Kb8 {[%clk 0:02:08]} 27. e6+ {[%clk 0:01:04]}  Ka8 {[%clk 0:02:08]} 28. exf7 {[%clk 0:01:04]}  Qg6+ {[%clk 0:02:09]} 29. Qd3 {[%clk 0:00:53]}  Qxf7 {[%clk 0:02:09]} 30. Ra4 {[%clk 0:00:49]}  Rhd8 {[%clk 0:02:01]} 31. Rad4 {[%clk 0:00:20]}  Rxd5 {[%clk 0:01:52]} 32. Rxd5 {[%clk 0:00:21]}  h4 {[%clk 0:01:48]} 33. g6 {[%clk 0:00:19]}  Qf6 {[%clk 0:01:45]} 34. Rd7 {[%clk 0:00:17]}  h3 {[%clk 0:01:40]} 35. a3 {[%clk 0:00:14]}  h2 {[%clk 0:01:38]} 36. Qe4 {[%clk 0:00:11]}  h1=Q+ {[%clk 0:01:36]} 37. Qxh1 {[%clk 0:00:10]}  Qf5+ {[%clk 0:01:37]} 38. Ka2 {[%clk 0:00:08]}  Qxd7 {[%clk 0:01:37]} 39. g7 {[%clk 0:00:08]}  Bf6 {[%clk 0:01:34]} 40. Nc5 {[%clk 0:00:04]}  Qf7+ {[%clk 0:01:31]} 41. Kb1 {[%clk 0:00:02]}  Bxg7 {[%clk 0:01:31]} 0-1


[Site "https://www.chess.com"]

[Event "Titled Tuesday Blitz January 11 2022"]
[White "Demchenko, Anton"]
[Black "Kovacsy, Barnabas"]
[WhiteFideId "4160258"]
[BlackFideId "769290"]
[WhiteElo "2539"]
[BlackElo "1938"]
[Result "1/2-1/2"]
[Round "01"]
[TimeControl "180+1"]
[Date "2022.01.11"]
[WhiteClock "0:00:44"]
[BlackClock "0:00:31"]

1. e4 {[%clk 0:02:56]}  c5 {[%clk 0:02:58]} 2. Nf3 {[%clk 0:02:56]}  e6 {[%clk 0:02:56]} 3. g3 {[%clk 0:02:51]}  Nc6 {[%clk 0:02:53]} 4. Bg2 {[%clk 0:02:51]}  d5 {[%clk 0:02:54]} 5. exd5 {[%clk 0:02:49]}  exd5 {[%clk 0:02:53]} 6. O-O {[%clk 0:02:49]}  Bg4 {[%clk 0:02:53]} 7. h3 {[%clk 0:02:48]}  Bxf3 {[%clk 0:02:52]} 8. Qxf3 {[%clk 0:02:39]}  Nf6 {[%clk 0:02:51]} 9. Nc3 {[%clk 0:02:25]}  Nd4 {[%clk 0:02:24]} 10. Qd1 {[%clk 0:02:15]}  Be7 {[%clk 0:02:19]} 11. d3 {[%clk 0:02:15]}  O-O {[%clk 0:02:17]} 12. Bg5 {[%clk 0:02:14]}  Re8 {[%clk 0:01:33]} 13. Kh2 {[%clk 0:01:51]}  Rc8 {[%clk 0:00:54]} 14. Bxf6 {[%clk 0:01:44]}  Bxf6 {[%clk 0:00:55]} 15. Nxd5 {[%clk 0:01:45]}  b5 {[%clk 0:00:52]} 16. c3 {[%clk 0:01:44]}  Nc6 {[%clk 0:00:48]} 17. a3 {[%clk 0:01:34]}  Qd6 {[%clk 0:00:36]} 18. Re1 {[%clk 0:01:27]}  Rcd8 {[%clk 0:00:26]} 19. Rxe8+ {[%clk 0:01:15]}  Rxe8 {[%clk 0:00:27]} 20. Qf3 {[%clk 0:01:15]}  Ne5 {[%clk 0:00:27]} 21. Qf5 {[%clk 0:01:15]}  Bd8 {[%clk 0:00:24]} 22. Rd1 {[%clk 0:00:54]}  g6 {[%clk 0:00:24]} 23. Qc8 {[%clk 0:00:54]}  Kf8 {[%clk 0:00:23]} 24. Qb7 {[%clk 0:00:54]}  h5 {[%clk 0:00:19]} 25. d4 {[%clk 0:00:47]}  cxd4 {[%clk 0:00:16]} 26. cxd4 {[%clk 0:00:48]}  Nc4 {[%clk 0:00:14]} 27. Qxb5 {[%clk 0:00:47]}  Nb6 {[%clk 0:00:12]} 28. Qc5 {[%clk 0:00:39]}  Qxc5 {[%clk 0:00:11]} 29. dxc5 {[%clk 0:00:40]}  Nxd5 {[%clk 0:00:11]} 30. Rxd5 {[%clk 0:00:34]}  Bf6 {[%clk 0:00:12]} 31. Rd2 {[%clk 0:00:35]}  Rc8 {[%clk 0:00:12]} 32. b4 {[%clk 0:00:34]}  a5 {[%clk 0:00:12]} 33. Bb7 {[%clk 0:00:31]}  Rc7 {[%clk 0:00:12]} 34. c6 {[%clk 0:00:30]}  axb4 {[%clk 0:00:12]} 35. axb4 {[%clk 0:00:31]}  Bc3 {[%clk 0:00:12]} 36. Rd3 {[%clk 0:00:15]}  Bxb4 {[%clk 0:00:13]} 37. h4 {[%clk 0:00:15]}  Be7 {[%clk 0:00:12]} 38. Kg2 {[%clk 0:00:16]}  Bf6 {[%clk 0:00:13]} 39. f4 {[%clk 0:00:15]}  Ke7 {[%clk 0:00:13]} 40. Kf3 {[%clk 0:00:15]}  Bb2 {[%clk 0:00:13]} 41. f5 {[%clk 0:00:13]}  Bf6 {[%clk 0:00:13]} 42. Kf4 {[%clk 0:00:13]}  Bg7 {[%clk 0:00:12]} 43. Re3+ {[%clk 0:00:11]}  Kf6 {[%clk 0:00:12]} 44. Re5 {[%clk 0:00:04]}  Bh6+ {[%clk 0:00:12]} 45. Ke4 {[%clk 0:00:04]}  Bg7 {[%clk 0:00:11]} 46. Rd5 {[%clk 0:00:04]}  Ke7 {[%clk 0:00:11]} 47. Rb5 {[%clk 0:00:03]}  Bf6 {[%clk 0:00:11]} 48. Kf3 {[%clk 0:00:03]}  Bg7 {[%clk 0:00:11]} 49. Kf4 {[%clk 0:00:04]}  Bh6+ {[%clk 0:00:11]} 50. Ke4 {[%clk 0:00:05]}  Bg7 {[%clk 0:00:11]} 51. Rd5 {[%clk 0:00:05]}  Bf6 {[%clk 0:00:11]} 52. Rd3 {[%clk 0:00:05]}  Bg7 {[%clk 0:00:12]} 53. Re3 {[%clk 0:00:05]}  Bh6 {[%clk 0:00:11]} 54. Re2 {[%clk 0:00:05]}  Kf6 {[%clk 0:00:11]} 55. fxg6 {[%clk 0:00:05]}  fxg6 {[%clk 0:00:11]} 56. Kf3 {[%clk 0:00:05]}  Bg7 {[%clk 0:00:11]} 57. Re8 {[%clk 0:00:06]}  Kf7 {[%clk 0:00:11]} 58. Ra8 {[%clk 0:00:05]}  Be5 {[%clk 0:00:11]} 59. Ra5 {[%clk 0:00:05]}  Ke6 {[%clk 0:00:11]} 60. Ra3 {[%clk 0:00:05]}  Rf7+ {[%clk 0:00:11]} 61. Kg2 {[%clk 0:00:05]}  Rc7 {[%clk 0:00:11]} 62. Re3 {[%clk 0:00:06]}  Kf6 {[%clk 0:00:12]} 63. Kf3 {[%clk 0:00:07]}  Bd6 {[%clk 0:00:12]} 64. Ke4 {[%clk 0:00:07]}  Re7+ {[%clk 0:00:11]} 65. Kd3 {[%clk 0:00:07]}  Rxe3+ {[%clk 0:00:12]} 66. Kxe3 {[%clk 0:00:08]}  Bxg3 {[%clk 0:00:12]} 67. Kf3 {[%clk 0:00:09]}  Bc7 {[%clk 0:00:12]} 68. Ke4 {[%clk 0:00:09]}  g5 {[%clk 0:00:13]} 69. hxg5+ {[%clk 0:00:09]}  Kxg5 {[%clk 0:00:13]} 70. Bc8 {[%clk 0:00:10]}  h4 {[%clk 0:00:14]} 71. Bd7 {[%clk 0:00:11]}  Kf6 {[%clk 0:00:14]} 72. Kd5 {[%clk 0:00:11]}  Ke7 {[%clk 0:00:15]} 73. Ke4 {[%clk 0:00:11]}  Bg3 {[%clk 0:00:15]} 74. Kf3 {[%clk 0:00:12]}  Kd6 {[%clk 0:00:15]} 75. Kg4 {[%clk 0:00:13]}  Kc7 {[%clk 0:00:16]} 76. Kh3 {[%clk 0:00:14]}  Bd6 {[%clk 0:00:16]} 77. Kg2 {[%clk 0:00:15]}  Bc5 {[%clk 0:00:16]} 78. Kh3 {[%clk 0:00:15]}  Bd6 {[%clk 0:00:17]} 79. Kxh4 {[%clk 0:00:16]}  Bc5 {[%clk 0:00:17]} 80. Kg4 {[%clk 0:00:17]}  Bd6 {[%clk 0:00:18]} 81. Kf5 {[%clk 0:00:18]}  Bc5 {[%clk 0:00:19]} 82. Ke4 {[%clk 0:00:18]}  Bb6 {[%clk 0:00:19]} 83. Kd5 {[%clk 0:00:19]}  Ba5 {[%clk 0:00:20]} 84. Kc4 {[%clk 0:00:20]}  Be1 {[%clk 0:00:20]} 85. Kb5 {[%clk 0:00:21]}  Bg3 {[%clk 0:00:21]} 86. Ka4 {[%clk 0:00:22]}  Bf4 {[%clk 0:00:21]} 87. Kb4 {[%clk 0:00:22]}  Be5 {[%clk 0:00:21]} 88. Kc4 {[%clk 0:00:23]}  Bd6 {[%clk 0:00:22]} 89. Kd3 {[%clk 0:00:24]}  Bh2 {[%clk 0:00:22]} 90. Ke4 {[%clk 0:00:25]}  Bd6 {[%clk 0:00:22]} 91. Kd5 {[%clk 0:00:26]}  Bh2 {[%clk 0:00:20]} 92. Kd4 {[%clk 0:00:27]}  Bd6 {[%clk 0:00:20]} 93. Ke4 {[%clk 0:00:27]}  Ba3 {[%clk 0:00:20]} 94. Ke3 {[%clk 0:00:28]}  Bd6 {[%clk 0:00:20]} 95. Kf3 {[%clk 0:00:29]}  Ba3 {[%clk 0:00:20]} 96. Kf4 {[%clk 0:00:30]}  Bb4 {[%clk 0:00:21]} 97. Kf5 {[%clk 0:00:31]}  Ba3 {[%clk 0:00:22]} 98. Ke6 {[%clk 0:00:32]}  Bb4 {[%clk 0:00:22]} 99. Kd5 {[%clk 0:00:32]}  Ba3 {[%clk 0:00:23]} 100. Kc4 {[%clk 0:00:33]}  Bd6 {[%clk 0:00:24]} 101. Kb5 {[%clk 0:00:34]}  Bh2 {[%clk 0:00:24]} 102. Kc4 {[%clk 0:00:34]}  Bg3 {[%clk 0:00:25]} 103. Kd5 {[%clk 0:00:35]}  Bh2 {[%clk 0:00:26]} 104. Ke6 {[%clk 0:00:36]}  Bd6 {[%clk 0:00:26]} 105. Kf7 {[%clk 0:00:37]}  Ba3 {[%clk 0:00:27]} 106. Ke8 {[%clk 0:00:37]}  Bd6 {[%clk 0:00:27]} 107. Kf7 {[%clk 0:00:38]}  Bh2 {[%clk 0:00:28]} 108. Ke6 {[%clk 0:00:39]}  Bg3 {[%clk 0:00:28]} 109. Kf7 {[%clk 0:00:40]}  Bd6 {[%clk 0:00:29]} 110. Kf6 {[%clk 0:00:41]}  Bh2 {[%clk 0:00:29]} 111. Kf5 {[%clk 0:00:41]}  Bg3 {[%clk 0:00:29]} 112. Ke4 {[%clk 0:00:42]}  Bd6 {[%clk 0:00:30]} 113. Kd5 {[%clk 0:00:43]}  Ba3 {[%clk 0:00:30]} 114. Kc4 {[%clk 0:00:44]}  Bd6 {[%clk 0:00:31]} 1/2-1/2


[Site "https://www.chess.com"]

[Event "Titled Tuesday Blitz January 11 2022"]
[White "Di Nicolantonio, Lucas"]
[Black "Plotkin, Mark"]
[WhiteFideId "680460"]
[BlackFideId "2611651"]
[WhiteElo "2381"]
[BlackElo "2178"]
[Result "1-0"]
[Round "01"]
[TimeControl "180+1"]
[Date "2022.01.11"]
[WhiteClock "0:00:05"]
[BlackClock "0:00:49"]

1. d4 {[%clk 0:03:00]}  Nf6 {[%clk 0:02:54]} 2. Bg5 {[%clk 0:03:00]}  d5 {[%clk 0:02:44]} 3. Bxf6 {[%clk 0:02:59]}  exf6 {[%clk 0:02:45]} 4. e3 {[%clk 0:02:57]}  f5 {[%clk 0:02:38]} 5. g3 {[%clk 0:02:56]}  Nd7 {[%clk 0:02:34]} 6. Bg2 {[%clk 0:02:54]}  Nf6 {[%clk 0:02:34]} 7. Ne2 {[%clk 0:02:51]}  c6 {[%clk 0:02:32]} 8. O-O {[%clk 0:02:49]}  h5 {[%clk 0:02:30]} 9. h4 {[%clk 0:02:45]}  g5 {[%clk 0:02:24]} 10. hxg5 {[%clk 0:02:40]}  Ng4 {[%clk 0:02:23]} 11. Nd2 {[%clk 0:02:04]}  Qxg5 {[%clk 0:02:17]} 12. Nf3 {[%clk 0:02:03]}  Qh6 {[%clk 0:02:05]} 13. Nf4 {[%clk 0:01:44]}  Be7 {[%clk 0:01:54]} 14. Nh4 {[%clk 0:01:33]}  Bxh4 {[%clk 0:01:43]} 15. gxh4 {[%clk 0:01:34]}  Qf6 {[%clk 0:01:43]} 16. f3 {[%clk 0:01:21]}  Qxh4 {[%clk 0:01:40]} 17. fxg4 {[%clk 0:01:21]}  hxg4 {[%clk 0:01:41]} 18. Qe1 {[%clk 0:01:13]}  Qe7 {[%clk 0:01:35]} 19. Qg3 {[%clk 0:01:01]}  Bd7 {[%clk 0:01:35]} 20. Kf2 {[%clk 0:01:00]}  O-O-O {[%clk 0:01:29]} 21. c3 {[%clk 0:00:55]}  Rhe8 {[%clk 0:01:20]} 22. Bxd5 {[%clk 0:00:30]}  b6 {[%clk 0:01:15]} 23. Bg2 {[%clk 0:00:22]}  Kb7 {[%clk 0:01:14]} 24. a4 {[%clk 0:00:21]}  Ka6 {[%clk 0:01:13]} 25. a5 {[%clk 0:00:20]}  b5 {[%clk 0:01:13]} 26. Nd3 {[%clk 0:00:20]}  Kb7 {[%clk 0:01:12]} 27. Nc5+ {[%clk 0:00:20]}  Ka8 {[%clk 0:01:13]} 28. Rfe1 {[%clk 0:00:17]}  Rc8 {[%clk 0:01:12]} 29. c4 {[%clk 0:00:15]}  bxc4 {[%clk 0:01:11]} 30. b3 {[%clk 0:00:15]}  cxb3 {[%clk 0:01:08]} 31. Rab1 {[%clk 0:00:15]}  Be6 {[%clk 0:01:07]} 32. Qe5 {[%clk 0:00:13]}  Qh4+ {[%clk 0:01:05]} 33. Qg3 {[%clk 0:00:13]}  Qh6 {[%clk 0:01:03]} 34. Rh1 {[%clk 0:00:12]}  Qg5 {[%clk 0:01:01]} 35. Nxb3 {[%clk 0:00:11]}  f4 {[%clk 0:00:59]} 36. Qxf4 {[%clk 0:00:10]}  Qb5 {[%clk 0:00:59]} 37. Nc5 {[%clk 0:00:09]}  Qxa5 {[%clk 0:00:59]} 38. Rb8+ {[%clk 0:00:04]}  Rxb8 {[%clk 0:00:48]} 39. Bxc6+ {[%clk 0:00:04]}  Rb7 {[%clk 0:00:49]} 40. Bxb7# {[%clk 0:00:05]} 1-0


[Site "https://www.chess.com"]

[Event "Titled Tuesday Blitz January 11 2022"]
[White "Erigaisi Arjun"]
[Black "Bychkov, Vladimir"]
[WhiteFideId "35009192"]
[BlackFideId "24151513"]
[WhiteElo "2745"]
[BlackElo "2253"]
[Result "1-0"]
[Round "01"]
[TimeControl "180+1"]
[Date "2022.01.11"]
[WhiteClock "0:00:38"]
[BlackClock "0:00:13"]

1. b3 {[%clk 0:03:00]}  d5 {[%clk 0:02:59]} 2. Bb2 {[%clk 0:03:01]}  c6 {[%clk 0:02:59]} 3. e3 {[%clk 0:03:01]}  Bf5 {[%clk 0:03:00]} 4. Nf3 {[%clk 0:03:00]}  Nf6 {[%clk 0:03:00]} 5. c4 {[%clk 0:03:00]}  e6 {[%clk 0:02:58]} 6. Nh4 {[%clk 0:02:59]}  Bg6 {[%clk 0:02:56]} 7. d3 {[%clk 0:02:58]}  Be7 {[%clk 0:02:55]} 8. Nd2 {[%clk 0:02:58]}  Nbd7 {[%clk 0:02:55]} 9. a3 {[%clk 0:02:57]}  Bh5 {[%clk 0:02:49]} 10. Be2 {[%clk 0:02:55]}  Bxe2 {[%clk 0:02:49]} 11. Qxe2 {[%clk 0:02:56]}  b5 {[%clk 0:02:43]} 12. O-O {[%clk 0:02:49]}  Rb8 {[%clk 0:02:42]} 13. b4 {[%clk 0:02:48]}  bxc4 {[%clk 0:02:40]} 14. dxc4 {[%clk 0:02:49]}  a5 {[%clk 0:02:39]} 15. cxd5 {[%clk 0:02:38]}  Nxd5 {[%clk 0:02:36]} 16. Nhf3 {[%clk 0:02:33]}  O-O {[%clk 0:02:29]} 17. Nd4 {[%clk 0:02:31]}  Qb6 {[%clk 0:02:05]} 18. Rfc1 {[%clk 0:01:46]}  c5 {[%clk 0:01:58]} 19. Nc4 {[%clk 0:01:43]}  Qc7 {[%clk 0:00:51]} 20. Nxa5 {[%clk 0:01:40]}  Bf6 {[%clk 0:00:51]} 21. Ndb3 {[%clk 0:01:23]}  Qd6 {[%clk 0:00:34]} 22. Bxf6 {[%clk 0:01:20]}  N5xf6 {[%clk 0:00:33]} 23. Nxc5 {[%clk 0:01:18]}  Nxc5 {[%clk 0:00:33]} 24. Rxc5 {[%clk 0:01:19]}  Ne4 {[%clk 0:00:33]} 25. Rc4 {[%clk 0:01:14]}  Qe5 {[%clk 0:00:30]} 26. Rac1 {[%clk 0:01:12]}  Qf5 {[%clk 0:00:20]} 27. Nc6 {[%clk 0:01:11]}  Rb7 {[%clk 0:00:20]} 28. Qc2 {[%clk 0:01:10]}  Nd6 {[%clk 0:00:17]} 29. Qxf5 {[%clk 0:01:11]}  exf5 {[%clk 0:00:17]} 30. Rc5 {[%clk 0:01:08]}  g6 {[%clk 0:00:17]} 31. a4 {[%clk 0:01:08]}  Kg7 {[%clk 0:00:17]} 32. f3 {[%clk 0:01:06]}  Ra8 {[%clk 0:00:17]} 33. a5 {[%clk 0:01:06]}  Nb5 {[%clk 0:00:18]} 34. Kf2 {[%clk 0:01:04]}  Nc7 {[%clk 0:00:18]} 35. Re5 {[%clk 0:01:00]}  Ne6 {[%clk 0:00:17]} 36. b5 {[%clk 0:00:59]}  Kf6 {[%clk 0:00:15]} 37. f4 {[%clk 0:00:57]}  g5 {[%clk 0:00:15]} 38. g3 {[%clk 0:00:57]}  h5 {[%clk 0:00:14]} 39. a6 {[%clk 0:00:52]}  Rb6 {[%clk 0:00:14]} 40. Nd4 {[%clk 0:00:51]}  gxf4 {[%clk 0:00:13]} 41. gxf4 {[%clk 0:00:52]}  Nxd4 {[%clk 0:00:13]} 42. exd4 {[%clk 0:00:53]}  Rd8 {[%clk 0:00:13]} 43. Rc6+ {[%clk 0:00:51]}  Rxc6 {[%clk 0:00:13]} 44. bxc6 {[%clk 0:00:52]}  Rxd4 {[%clk 0:00:13]} 45. c7 {[%clk 0:00:44]}  Rxf4+ {[%clk 0:00:13]} 46. Ke3 {[%clk 0:00:44]}  Rc4 {[%clk 0:00:13]} 47. Ra5 {[%clk 0:00:38]}  Rxc7 {[%clk 0:00:13]} 48. a7 {[%clk 0:00:38]} 1-0


[Site "https://www.chess.com"]

[Event "Titled Tuesday Blitz January 11 2022"]
[White "Hansen, Eric"]
[Black "Ianov, Viktor"]
[WhiteFideId "2606771"]
[BlackFideId "14102730"]
[WhiteElo "2568"]
[BlackElo "2215"]
[Result "1-0"]
[Round "01"]
[TimeControl "180+1"]
[Date "2022.01.11"]
[WhiteClock "0:00:57"]
[BlackClock "0:00:32"]

1. e4 {[%clk 0:02:59]}  d6 {[%clk 0:02:58]} 2. d4 {[%clk 0:02:56]}  Nf6 {[%clk 0:02:57]} 3. Nc3 {[%clk 0:02:51]}  c6 {[%clk 0:02:57]} 4. Nf3 {[%clk 0:02:30]}  Bg4 {[%clk 0:02:55]} 5. Be2 {[%clk 0:02:30]}  e6 {[%clk 0:02:55]} 6. O-O {[%clk 0:02:27]}  d5 {[%clk 0:02:54]} 7. Ne5 {[%clk 0:02:21]}  Bxe2 {[%clk 0:02:52]} 8. Qxe2 {[%clk 0:02:22]}  Nbd7 {[%clk 0:02:51]} 9. Rd1 {[%clk 0:02:21]}  Be7 {[%clk 0:02:47]} 10. a3 {[%clk 0:02:19]}  O-O {[%clk 0:02:46]} 11. Bf4 {[%clk 0:02:19]}  Re8 {[%clk 0:02:42]} 12. h3 {[%clk 0:02:18]}  Nxe5 {[%clk 0:02:37]} 13. dxe5 {[%clk 0:02:16]}  Nd7 {[%clk 0:02:35]} 14. Rd3 {[%clk 0:02:13]}  Qa5 {[%clk 0:02:29]} 15. Rad1 {[%clk 0:02:10]}  Rac8 {[%clk 0:02:24]} 16. Rg3 {[%clk 0:02:04]}  Nf8 {[%clk 0:02:21]} 17. Rgd3 {[%clk 0:01:46]}  Ng6 {[%clk 0:02:18]} 18. Bg3 {[%clk 0:01:45]}  a6 {[%clk 0:02:15]} 19. Kh1 {[%clk 0:01:36]}  b5 {[%clk 0:02:14]} 20. Nb1 {[%clk 0:01:34]}  b4 {[%clk 0:02:11]} 21. axb4 {[%clk 0:01:33]}  Bxb4 {[%clk 0:02:08]} 22. f4 {[%clk 0:01:30]}  Qb5 {[%clk 0:01:58]} 23. Qf3 {[%clk 0:01:22]}  a5 {[%clk 0:01:57]} 24. h4 {[%clk 0:01:14]}  Ne7 {[%clk 0:01:53]} 25. h5 {[%clk 0:01:11]}  Qc4 {[%clk 0:01:45]} 26. exd5 {[%clk 0:01:10]}  cxd5 {[%clk 0:01:44]} 27. c3 {[%clk 0:01:09]}  Bc5 {[%clk 0:01:41]} 28. Bf2 {[%clk 0:01:05]}  Bxf2 {[%clk 0:01:38]} 29. Qxf2 {[%clk 0:01:06]}  h6 {[%clk 0:01:32]} 30. Na3 {[%clk 0:01:02]}  Qc6 {[%clk 0:01:24]} 31. Nc2 {[%clk 0:01:02]}  Rb8 {[%clk 0:01:22]} 32. Nd4 {[%clk 0:01:02]}  Qb6 {[%clk 0:01:22]} 33. R1d2 {[%clk 0:01:02]}  Nc6 {[%clk 0:01:19]} 34. Nxc6 {[%clk 0:00:59]}  Qxc6 {[%clk 0:01:18]} 35. f5 {[%clk 0:01:00]}  a4 {[%clk 0:01:12]} 36. f6 {[%clk 0:00:59]}  Qc4 {[%clk 0:01:04]} 37. Rd4 {[%clk 0:00:59]}  Qc5 {[%clk 0:01:01]} 38. Qg3 {[%clk 0:00:58]}  Qf8 {[%clk 0:00:53]} 39. Rg4 {[%clk 0:00:58]}  a3 {[%clk 0:00:50]} 40. bxa3 {[%clk 0:00:58]}  Rb1+ {[%clk 0:00:48]} 41. Kh2 {[%clk 0:00:58]}  Reb8 {[%clk 0:00:47]} 42. Rdd4 {[%clk 0:00:54]}  Rc1 {[%clk 0:00:42]} 43. Rxg7+ {[%clk 0:00:54]}  Kh8 {[%clk 0:00:41]} 44. Qd3 {[%clk 0:00:54]}  Qxg7 {[%clk 0:00:37]} 45. fxg7+ {[%clk 0:00:54]}  Kxg7 {[%clk 0:00:37]} 46. Rg4+ {[%clk 0:00:55]}  Kf8 {[%clk 0:00:37]} 47. Qe3 {[%clk 0:00:55]}  Rbb1 {[%clk 0:00:34]} 48. Qc5+ {[%clk 0:00:56]}  Ke8 {[%clk 0:00:32]} 49. Rg8+ {[%clk 0:00:57]} 1-0


[Site "https://www.chess.com"]

[Event "Titled Tuesday Blitz January 11 2022"]
[White "Horvath, Dominik"]
[Black "Schmidt, Tobias"]
[WhiteFideId "1642561"]
[BlackFideId "1271683"]
[WhiteElo "2336"]
[BlackElo "2328"]
[Result "1-0"]
[Round "01"]
[TimeControl "180+1"]
[Date "2022.01.11"]
[WhiteClock "0:00:25"]
[BlackClock "0:00:18"]

1. d4 {[%clk 0:02:59]}  e6 {[%clk 0:02:59]} 2. c4 {[%clk 0:02:57]}  Nf6 {[%clk 0:02:59]} 3. Nc3 {[%clk 0:02:56]}  Bb4 {[%clk 0:02:57]} 4. e3 {[%clk 0:02:56]}  O-O {[%clk 0:02:41]} 5. Bd3 {[%clk 0:02:48]}  d5 {[%clk 0:02:20]} 6. cxd5 {[%clk 0:02:39]}  exd5 {[%clk 0:02:19]} 7. Ne2 {[%clk 0:02:39]}  c5 {[%clk 0:02:13]} 8. O-O {[%clk 0:02:31]}  Nc6 {[%clk 0:02:12]} 9. dxc5 {[%clk 0:02:31]}  Bxc5 {[%clk 0:02:06]} 10. Bc2 {[%clk 0:02:28]}  d4 {[%clk 0:02:01]} 11. Na4 {[%clk 0:02:29]}  b6 {[%clk 0:01:47]} 12. Nxc5 {[%clk 0:02:25]}  bxc5 {[%clk 0:01:47]} 13. Ba4 {[%clk 0:02:14]}  Bb7 {[%clk 0:01:42]} 14. Bxc6 {[%clk 0:02:14]}  Bxc6 {[%clk 0:01:42]} 15. exd4 {[%clk 0:02:15]}  Qd5 {[%clk 0:01:39]} 16. f3 {[%clk 0:02:09]}  Rfd8 {[%clk 0:01:36]} 17. Be3 {[%clk 0:02:07]}  Bb5 {[%clk 0:01:25]} 18. Nc3 {[%clk 0:02:00]}  Qc4 {[%clk 0:01:19]} 19. Nxb5 {[%clk 0:01:45]}  Qxb5 {[%clk 0:01:18]} 20. Qd2 {[%clk 0:01:20]}  Rd7 {[%clk 0:01:18]} 21. Rad1 {[%clk 0:01:08]}  Rad8 {[%clk 0:01:13]} 22. Qf2 {[%clk 0:01:07]}  c4 {[%clk 0:00:59]} 23. Rd2 {[%clk 0:01:02]}  Nd5 {[%clk 0:00:58]} 24. Re1 {[%clk 0:00:43]}  Nb4 {[%clk 0:00:54]} 25. Qg3 {[%clk 0:00:39]}  Qc6 {[%clk 0:00:42]} 26. Bg5 {[%clk 0:00:36]}  f6 {[%clk 0:00:39]} 27. Bh6 {[%clk 0:00:29]}  Nd3 {[%clk 0:00:38]} 28. Re4 {[%clk 0:00:29]}  Kh8 {[%clk 0:00:32]} 29. Rde2 {[%clk 0:00:28]}  Rxd4 {[%clk 0:00:18]} 30. Qxg7# {[%clk 0:00:25]} 1-0


[Site "https://www.chess.com"]

[Event "Titled Tuesday Blitz January 11 2022"]
[White "Howell, David W L"]
[Black "Suarez Uriel, Adrian"]
[WhiteFideId "410608"]
[BlackFideId "22230874"]
[WhiteElo "2559"]
[BlackElo "2316"]
[Result "1-0"]
[Round "01"]
[TimeControl "180+1"]
[Date "2022.01.11"]
[WhiteClock "0:00:57"]
[BlackClock "0:01:27"]

1. d4 {[%clk 0:02:46]}  Nf6 {[%clk 0:02:59]} 2. c4 {[%clk 0:02:45]}  g6 {[%clk 0:03:00]} 3. Nc3 {[%clk 0:02:46]}  d5 {[%clk 0:03:00]} 4. Nf3 {[%clk 0:02:37]}  Bg7 {[%clk 0:02:59]} 5. cxd5 {[%clk 0:02:38]}  Nxd5 {[%clk 0:02:59]} 6. e4 {[%clk 0:02:39]}  Nxc3 {[%clk 0:02:58]} 7. bxc3 {[%clk 0:02:40]}  c5 {[%clk 0:02:59]} 8. Be3 {[%clk 0:02:39]}  O-O {[%clk 0:02:57]} 9. Be2 {[%clk 0:02:32]}  b6 {[%clk 0:02:58]} 10. O-O {[%clk 0:02:31]}  Bb7 {[%clk 0:02:58]} 11. Qd3 {[%clk 0:02:30]}  Qc7 {[%clk 0:02:57]} 12. d5 {[%clk 0:02:29]}  Nd7 {[%clk 0:02:55]} 13. Rad1 {[%clk 0:02:26]}  Rad8 {[%clk 0:02:54]} 14. c4 {[%clk 0:02:26]}  e6 {[%clk 0:02:53]} 15. Rfe1 {[%clk 0:02:24]}  exd5 {[%clk 0:02:52]} 16. cxd5 {[%clk 0:02:18]}  Rfe8 {[%clk 0:02:51]} 17. Bg5 {[%clk 0:02:12]}  Rc8 {[%clk 0:02:49]} 18. Nd2 {[%clk 0:02:02]}  Ne5 {[%clk 0:02:44]} 19. Qc2 {[%clk 0:02:03]}  c4 {[%clk 0:02:42]} 20. a4 {[%clk 0:01:57]}  Qd7 {[%clk 0:02:14]} 21. Be3 {[%clk 0:01:52]}  c3 {[%clk 0:01:54]} 22. Nb1 {[%clk 0:01:45]}  Ng4 {[%clk 0:01:53]} 23. Bxg4 {[%clk 0:01:34]}  Qxg4 {[%clk 0:01:52]} 24. Bd4 {[%clk 0:01:35]}  Rc4 {[%clk 0:01:46]} 25. Bxg7 {[%clk 0:01:33]}  Kxg7 {[%clk 0:01:46]} 26. Nxc3 {[%clk 0:01:21]}  Rec8 {[%clk 0:01:31]} 27. Qb2 {[%clk 0:01:06]}  Rxc3 {[%clk 0:01:27]} 28. Rc1 {[%clk 0:00:57]} 1-0


[Site "https://www.chess.com"]